[Event "*** Titled Tuesday Blitz"]
[Site "Chess.com"]
[Date "2019.11.05"]
[Round "1"]
[White "Pultis"]
[Black "XiaoKangZhong"]
[Result "1-0"]
[WhiteElo "2703"]
[BlackElo "2368"]
[TimeControl "180+2"]
[EndTime "13:05:34 PST"]
[Termination "Pultis won by resignation"]

1. d4 {[%clk 0:03:01.9]} 1... Nf6 {[%clk 0:00:37.6]} 2. c4 {[%clk 0:03:02.3]}
2... g6 {[%clk 0:00:34.7]} 3. Nc3 {[%clk 0:03:02.4]} 3... d5 {[%clk 0:00:34.9]}
4. cxd5 {[%clk 0:03:02.8]} 4... Nxd5 {[%clk 0:00:36.8]} 5. e4 {[%clk 0:03:04.2]}
5... Nxc3 {[%clk 0:00:38.2]} 6. bxc3 {[%clk 0:03:06]} 6... Bg7 {[%clk
0:00:39.8]} 7. Bc4 {[%clk 0:03:06]} 7... c5 {[%clk 0:00:41.1]} 8. Ne2 {[%clk
0:03:07.3]} 8... O-O {[%clk 0:00:42.8]} 9. Be3 {[%clk 0:03:08.4]} 9... Nc6
{[%clk 0:00:44.3]} 10. O-O {[%clk 0:03:09.9]} 10... Qc7 {[%clk 0:00:45.8]} 11.
Rc1 {[%clk 0:03:01.6]} 11... Rd8 {[%clk 0:00:46.9]} 12. Bf4 {[%clk 0:03:02.9]}
12... Be5 {[%clk 0:00:47.6]} 13. Bxe5 {[%clk 0:03:02.2]} 13... Nxe5 {[%clk
0:00:48.9]} 14. Bb3 {[%clk 0:03:03.8]} 14... c4 {[%clk 0:00:47.5]} 15. Bc2
{[%clk 0:03:03.4]} 15... Qa5 {[%clk 0:00:48.2]} 16. Ng3 {[%clk 0:02:56.6]} 16...
Nc6 {[%clk 0:00:46.8]} 17. Bb1 {[%clk 0:02:55.4]} 17... b5 {[%clk 0:00:46.1]}
18. Qe2 {[%clk 0:02:53.3]} 18... e6 {[%clk 0:00:45.8]} 19. f4 {[%clk 0:02:53.9]}
19... Ne7 {[%clk 0:00:41.8]} 20. f5 {[%clk 0:02:54.2]} 20... e5 {[%clk
0:00:15.9]} 21. f6 {[%clk 0:02:52.6]} 21... Nc6 {[%clk 0:00:16.1]} 22. d5 {[%clk
0:02:53.6]} 22... Nb8 {[%clk 0:00:16.6]} 23. Qd2 {[%clk 0:02:53.5]} 23... Qa3
{[%clk 0:00:17.3]} 24. Qh6 {[%clk 0:02:53.8]} 24... Qf8 {[%clk 0:00:18.1]} 25.
Qg5 {[%clk 0:02:54.9]} 25... Nd7 {[%clk 0:00:18.2]} 26. Nf5 {[%clk 0:02:53.4]}
26... Kh8 {[%clk 0:00:19.6]} 27. Ne7 {[%clk 0:02:52.7]} 27... Bb7 {[%clk
0:00:20.9]} 28. a4 {[%clk 0:02:51.7]} 28... a6 {[%clk 0:00:21.7]} 29. a5 {[%clk
0:02:53.1]} 29... Re8 {[%clk 0:00:20.9]} 30. Rf3 {[%clk 0:02:53.3]} 30... Rad8
{[%clk 0:00:21.3]} 31. Rcf1 {[%clk 0:02:54.1]} 31... Rb8 {[%clk 0:00:17.5]} 32.
Rh3 {[%clk 0:02:54.6]} 32... b4 {[%clk 0:00:15.9]} 33. cxb4 {[%clk 0:02:54.2]}
33... c3 {[%clk 0:00:16.8]} 34. Bc2 {[%clk 0:02:54.6]} 34... Rxe7 {[%clk
0:00:13]} 35. fxe7 {[%clk 0:02:55.1]} 35... Qg7 {[%clk 0:00:14.7]} 36. Ba4
{[%clk 0:02:53.3]} 36... Bc8 {[%clk 0:00:15.1]} 37. e8=Q+ {[%clk 0:02:53.9]} 1-0

[Event "*** Titled Tuesday Blitz"]
[Site "Chess.com"]
[Date "2019.11.05"]
[Round "1"]
[White "GelmanAlexander"]
[Black "Genghis_K"]
[Result "0-1"]
[WhiteElo "2490"]
[BlackElo "2904"]
[TimeControl "180+2"]
[EndTime "13:05:45 PST"]
[Termination "Genghis_K won by resignation"]

1. e4 {[%clk 0:02:59.9]} 1... c5 {[%clk 0:02:56.8]} 2. b4 {[%clk 0:02:58.1]}
2... cxb4 {[%clk 0:02:57.1]} 3. a3 {[%clk 0:02:59.2]} 3... d5 {[%clk 0:02:58.6]}
4. exd5 {[%clk 0:02:59.9]} 4... Qxd5 {[%clk 0:03:00.5]} 5. Nf3 {[%clk
0:03:00.3]} 5... Nc6 {[%clk 0:02:58.8]} 6. axb4 {[%clk 0:02:58.6]} 6... Bg4
{[%clk 0:02:56.5]} 7. Nc3 {[%clk 0:02:47.9]} 7... Qe6+ {[%clk 0:02:34.7]} 8. Be2
{[%clk 0:01:10.6]} 8... Bxf3 {[%clk 0:02:21.1]} 9. gxf3 {[%clk 0:01:12.5]} 9...
Nf6 {[%clk 0:02:15.5]} 10. Nb5 {[%clk 0:00:58.8]} 10... Qd7 {[%clk 0:02:12.8]}
11. c3 {[%clk 0:00:48.4]} 11... e6 {[%clk 0:02:04.7]} 12. d4 {[%clk 0:00:49.6]}
12... Be7 {[%clk 0:01:56.8]} 13. Rg1 {[%clk 0:00:50.5]} 13... g6 {[%clk
0:01:48.1]} 14. Bh6 {[%clk 0:00:46.4]} 14... Nd5 {[%clk 0:01:44.3]} 15. Bg7
{[%clk 0:00:33.5]} 15... Rg8 {[%clk 0:01:43.1]} 16. Bh6 {[%clk 0:00:34.8]} 16...
a6 {[%clk 0:01:40.8]} 17. Qd2 {[%clk 0:00:33.1]} 17... Rc8 {[%clk 0:01:38.2]}
18. Na3 {[%clk 0:00:32]} 18... Nxc3 {[%clk 0:01:38]} 19. b5 {[%clk 0:00:27.7]}
19... Nxd4 {[%clk 0:01:35.6]} 0-1

[Event "*** Titled Tuesday Blitz"]
[Site "Chess.com"]
[Date "2019.11.05"]
[Round "1"]
[White "IMDT02"]
[Black "MikeSailer"]
[Result "1-0"]
[WhiteElo "2602"]
[BlackElo "2207"]
[TimeControl "180+2"]
[EndTime "13:05:54 PST"]
[Termination "IMDT02 won by resignation"]

1. d4 {[%clk 0:03:01.9]} 1... d5 {[%clk 0:03:01]} 2. c4 {[%clk 0:03:03.3]} 2...
Bf5 {[%clk 0:03:02.4]} 3. Nc3 {[%clk 0:03:04.3]} 3... e6 {[%clk 0:03:03.5]} 4.
Nf3 {[%clk 0:02:59.7]} 4... Nc6 {[%clk 0:03:04.8]} 5. a3 {[%clk 0:02:52.5]} 5...
a5 {[%clk 0:03:03.4]} 6. Bf4 {[%clk 0:02:49.3]} 6... Bd6 {[%clk 0:03:01.8]} 7.
Bg3 {[%clk 0:02:46.1]} 7... Nf6 {[%clk 0:03:02.5]} 8. e3 {[%clk 0:02:46.6]} 8...
O-O {[%clk 0:03:03.4]} 9. Be2 {[%clk 0:02:44.5]} 9... h6 {[%clk 0:02:59.2]} 10.
O-O {[%clk 0:02:45.2]} 10... Bxg3 {[%clk 0:02:59.6]} 11. hxg3 {[%clk 0:02:45.7]}
11... Ne4 {[%clk 0:03:00.8]} 12. Rc1 {[%clk 0:02:46.3]} 12... Nxc3 {[%clk
0:03:00.5]} 13. Rxc3 {[%clk 0:02:46.6]} 13... Bg4 {[%clk 0:02:47.2]} 14. cxd5
{[%clk 0:02:38.8]} 14... exd5 {[%clk 0:02:48]} 15. Qc2 {[%clk 0:02:40.1]} 15...
Qe7 {[%clk 0:02:33.7]} 16. Rc1 {[%clk 0:02:38.8]} 16... Qe4 {[%clk 0:02:19.9]}
17. Bd3 {[%clk 0:02:34.2]} 17... Qe6 {[%clk 0:02:20.8]} 18. Rc5 {[%clk
0:02:18.5]} 18... Rad8 {[%clk 0:02:06.9]} 19. Qb3 {[%clk 0:02:10.4]} 19... Rb8
{[%clk 0:01:53.1]} 20. Qxd5 {[%clk 0:02:04.1]} 20... Qxd5 {[%clk 0:01:47]} 21.
Rxd5 {[%clk 0:02:06]} 21... Ne7 {[%clk 0:01:44.6]} 22. Rxa5 {[%clk 0:02:04.9]}
22... c6 {[%clk 0:01:42.3]} 23. Ne5 {[%clk 0:02:06]} 23... Be6 {[%clk
0:01:40.3]} 24. Rac5 {[%clk 0:02:07.5]} 24... Nd5 {[%clk 0:01:28.7]} 25. R5c2
{[%clk 0:02:03]} 25... Ra8 {[%clk 0:01:22]} 26. Bc4 {[%clk 0:01:56.7]} 26... Ra5
{[%clk 0:01:14]} 27. Nd3 {[%clk 0:01:53.4]} 27... b5 {[%clk 0:01:09.4]} 28. Bxd5
{[%clk 0:01:50.5]} 28... Bxd5 {[%clk 0:01:10]} 29. Nb4 {[%clk 0:01:51.7]} 29...
Rd8 {[%clk 0:01:03.3]} 30. Rxc6 {[%clk 0:01:44.6]} 30... Ra4 {[%clk 0:00:55.5]}
31. Rc8 {[%clk 0:01:43.8]} 31... Rxc8 {[%clk 0:00:56.7]} 32. Rxc8+ {[%clk
0:01:44.7]} 1-0

[Event "*** Titled Tuesday Blitz"]
[Site "Chess.com"]
[Date "2019.11.05"]
[Round "1"]
[White "Alexander_Moskalenko"]
[Black "cukus"]
[Result "1-0"]
[WhiteElo "2880"]
[BlackElo "2480"]
[TimeControl "180+2"]
[EndTime "13:06:05 PST"]
[Termination "Alexander_Moskalenko won by resignation"]

1. e4 {[%clk 0:02:57.6]} 1... e5 {[%clk 0:03:00.4]} 2. Nf3 {[%clk 0:02:58.3]}
2... Nf6 {[%clk 0:03:01.1]} 3. d4 {[%clk 0:02:55.2]} 3... Nxe4 {[%clk
0:02:58.1]} 4. Bd3 {[%clk 0:02:55.9]} 4... d5 {[%clk 0:02:56.5]} 5. Nxe5 {[%clk
0:02:57.3]} 5... Bd6 {[%clk 0:02:49.7]} 6. Nc3 {[%clk 0:02:57.5]} 6... Nxc3
{[%clk 0:02:43.2]} 7. bxc3 {[%clk 0:02:59.4]} 7... Bxe5 {[%clk 0:02:44]} 8. dxe5
{[%clk 0:02:59.9]} 8... O-O {[%clk 0:02:44.8]} 9. O-O {[%clk 0:03:01.4]} 9... c5
{[%clk 0:02:36.8]} 10. f4 {[%clk 0:02:56]} 10... Nc6 {[%clk 0:02:36.8]} 11. Be3
{[%clk 0:02:54.6]} 11... d4 {[%clk 0:02:30.2]} 12. cxd4 {[%clk 0:02:54.6]} 12...
cxd4 {[%clk 0:02:30.2]} 13. Bf2 {[%clk 0:02:55.2]} 13... Be6 {[%clk 0:02:29.4]}
14. Qf3 {[%clk 0:02:22.6]} 14... Bd5 {[%clk 0:02:17.2]} 15. Qh3 {[%clk
0:02:22.4]} 15... h6 {[%clk 0:02:00.6]} 16. a3 {[%clk 0:02:22.5]} 16... Qc8
{[%clk 0:00:36.8]} 17. Qh5 {[%clk 0:02:20.5]} 17... Qd7 {[%clk 0:00:30.9]} 18.
Rad1 {[%clk 0:02:19.6]} 18... f5 {[%clk 0:00:29.2]} 19. exf6 {[%clk 0:02:18.5]}
19... Rxf6 {[%clk 0:00:26.3]} 20. Bh4 {[%clk 0:02:17.4]} 20... Rf7 {[%clk
0:00:23.5]} 21. Qg6 {[%clk 0:02:18]} 21... Ne7 {[%clk 0:00:21.8]} 22. Qh7+
{[%clk 0:02:18.8]} 22... Kf8 {[%clk 0:00:23.5]} 23. Qh8+ {[%clk 0:02:01.7]}
23... Ng8 {[%clk 0:00:24.5]} 24. Bh7 {[%clk 0:02:03]} 24... Rf5 {[%clk
0:00:22.3]} 25. Rxd4 {[%clk 0:02:01.1]} 25... Kf7 {[%clk 0:00:20.1]} 26. c4
{[%clk 0:01:55.2]} 26... Re8 {[%clk 0:00:14.1]} 27. Bxf5 {[%clk 0:01:53.1]}
27... Qxf5 {[%clk 0:00:14.4]} 28. Rxd5 {[%clk 0:01:54.5]} 1-0

[Event "*** Titled Tuesday Blitz"]
[Site "Chess.com"]
[Date "2019.11.05"]
[Round "1"]
[White "Simoncelli15"]
[Black "JakubPulpan"]
[Result "0-1"]
[WhiteElo "2384"]
[BlackElo "2717"]
[TimeControl "180+2"]
[EndTime "13:06:09 PST"]
[Termination "JakubPulpan won by resignation"]

1. e4 {[%clk 0:03:01.9]} 1... e5 {[%clk 0:02:59.7]} 2. Nf3 {[%clk 0:03:00.9]}
2... Nc6 {[%clk 0:03:00.1]} 3. Bb5 {[%clk 0:03:02.5]} 3... Nf6 {[%clk
0:02:59.6]} 4. d3 {[%clk 0:02:59.4]} 4... Bc5 {[%clk 0:03:00.6]} 5. c3 {[%clk
0:02:58.8]} 5... O-O {[%clk 0:03:01]} 6. O-O {[%clk 0:02:59.3]} 6... Re8 {[%clk
0:03:02.3]} 7. Re1 {[%clk 0:02:56.7]} 7... a6 {[%clk 0:03:01.9]} 8. Ba4 {[%clk
0:02:57.3]} 8... Ba7 {[%clk 0:02:58.6]} 9. h3 {[%clk 0:02:57.7]} 9... h6 {[%clk
0:02:59.5]} 10. Nbd2 {[%clk 0:02:57.8]} 10... d5 {[%clk 0:02:53.3]} 11. exd5
{[%clk 0:02:50.9]} 11... Qxd5 {[%clk 0:02:55.2]} 12. Ne4 {[%clk 0:02:44.8]}
12... Nxe4 {[%clk 0:02:55.4]} 13. dxe4 {[%clk 0:02:46.7]} 13... Qxd1 {[%clk
0:02:57.1]} 14. Rxd1 {[%clk 0:02:46.8]} 14... b5 {[%clk 0:02:58.7]} 15. Bb3
{[%clk 0:02:45.8]} 15... Na5 {[%clk 0:02:59.3]} 16. Bc2 {[%clk 0:02:38.9]} 16...
Be6 {[%clk 0:02:57.5]} 17. Nxe5 {[%clk 0:02:25.1]} 17... Bxh3 {[%clk 0:02:57.8]}
18. Nf3 {[%clk 0:02:18.3]} 18... Bg4 {[%clk 0:02:57]} 19. Bf4 {[%clk 0:02:19.8]}
19... Nc4 {[%clk 0:02:53.6]} 20. b3 {[%clk 0:02:19.4]} 20... Na3 {[%clk
0:02:54.8]} 21. Bd3 {[%clk 0:02:19.1]} 21... c5 {[%clk 0:02:51.6]} 22. Bc1
{[%clk 0:02:08.5]} 22... c4 {[%clk 0:02:50.2]} 23. Bf1 {[%clk 0:02:02.1]} 23...
Nc2 {[%clk 0:02:41.6]} 24. Rb1 {[%clk 0:02:03.3]} 24... Rxe4 {[%clk 0:02:37.2]}
25. Rb2 {[%clk 0:01:53]} 25... Ne1 {[%clk 0:02:37]} 26. Rxe1 {[%clk 0:01:45.5]}
26... Bxf3 {[%clk 0:02:36.9]} 27. Rxe4 {[%clk 0:01:46.6]} 27... Bxe4 {[%clk
0:02:38.8]} 28. bxc4 {[%clk 0:01:48.3]} 28... bxc4 {[%clk 0:02:40.6]} 29. Bxc4
{[%clk 0:01:49.8]} 29... Rc8 {[%clk 0:02:42.2]} 30. Bxa6 {[%clk 0:01:49.8]}
30... Rxc3 {[%clk 0:02:43.2]} 31. Bd2 {[%clk 0:01:51]} 31... Rc7 {[%clk
0:02:36.2]} 32. a4 {[%clk 0:01:49.4]} 32... Bd4 {[%clk 0:02:35.3]} 33. Rb8+
{[%clk 0:01:48.3]} 33... Kh7 {[%clk 0:02:36.3]} 34. Re8 {[%clk 0:01:48.1]} 34...
Bc6 {[%clk 0:02:32.5]} 35. Bd3+ {[%clk 0:01:43]} 35... g6 {[%clk 0:02:32.8]} 36.
Rd8 {[%clk 0:01:43.7]} 36... Bf6 {[%clk 0:02:33.8]} 37. Rd6 {[%clk 0:01:42]}
37... Be5 {[%clk 0:02:34.7]} 38. Rd8 {[%clk 0:01:36.7]} 38... Bxa4 {[%clk
0:02:35.8]} 39. f4 {[%clk 0:01:35.8]} 39... Bf6 {[%clk 0:02:26.1]} 40. Rd6
{[%clk 0:01:36]} 40... Be7 {[%clk 0:02:27.3]} 41. Ra6 {[%clk 0:01:34]} 41... Bc2
{[%clk 0:02:24.5]} 42. Be2 {[%clk 0:01:30.8]} 42... Rd7 {[%clk 0:02:23.3]} 43.
Bc3 {[%clk 0:01:30]} 43... Bc5+ {[%clk 0:02:23.2]} 44. Kh2 {[%clk 0:01:30.3]}
44... Be4 {[%clk 0:02:23.6]} 45. Ra5 {[%clk 0:01:24.2]} 45... Be3 {[%clk
0:02:24.3]} 46. g3 {[%clk 0:01:24.1]} 46... Bd2 {[%clk 0:02:25.5]} 47. Ra3
{[%clk 0:01:18]} 47... Bxc3 {[%clk 0:02:22.9]} 48. Rxc3 {[%clk 0:01:19.9]} 48...
Rd2 {[%clk 0:02:24]} 49. Re3 {[%clk 0:01:19]} 49... Bd5 {[%clk 0:02:24.1]} 50.
g4 {[%clk 0:01:15.2]} 50... Bc4 {[%clk 0:02:22.3]} 0-1

[Event "*** Titled Tuesday Blitz"]
[Site "Chess.com"]
[Date "2019.11.05"]
[Round "1"]
[White "Bishops83"]
[Black "sandropozo"]
[Result "0-1"]
[WhiteElo "2281"]
[BlackElo "2641"]
[TimeControl "180+2"]
[EndTime "13:06:09 PST"]
[Termination "sandropozo won by resignation"]

1. e4 {[%clk 0:03:01.8]} 1... e6 {[%clk 0:02:58.8]} 2. d4 {[%clk 0:03:00.1]}
2... d5 {[%clk 0:03:00.7]} 3. Nc3 {[%clk 0:03:00.2]} 3... Bb4 {[%clk 0:03:00.2]}
4. exd5 {[%clk 0:02:55.3]} 4... exd5 {[%clk 0:03:00.2]} 5. Bd3 {[%clk
0:02:56.5]} 5... Ne7 {[%clk 0:02:59.8]} 6. Qh5 {[%clk 0:02:40.1]} 6... c5 {[%clk
0:02:56.6]} 7. dxc5 {[%clk 0:02:29.7]} 7... Nd7 {[%clk 0:02:54.6]} 8. Ne2 {[%clk
0:01:48.2]} 8... Nxc5 {[%clk 0:02:49.9]} 9. a3 {[%clk 0:01:43.6]} 9... Bxc3+
{[%clk 0:02:44.6]} 10. Nxc3 {[%clk 0:01:45.5]} 10... Nxd3+ {[%clk 0:02:45.5]}
11. cxd3 {[%clk 0:01:46.2]} 11... Bf5 {[%clk 0:02:45.7]} 12. O-O {[%clk
0:01:32.3]} 12... O-O {[%clk 0:02:36]} 13. d4 {[%clk 0:01:32.4]} 13... Qd7
{[%clk 0:02:26]} 14. Re1 {[%clk 0:01:32.2]} 14... Rfe8 {[%clk 0:02:16.7]} 15.
Bg5 {[%clk 0:01:25.9]} 15... Ng6 {[%clk 0:02:11.4]} 16. Qf3 {[%clk 0:01:21.1]}
16... h6 {[%clk 0:02:02.2]} 17. Bd2 {[%clk 0:01:18.5]} 17... Be6 {[%clk
0:01:43.6]} 18. Rac1 {[%clk 0:01:15.2]} 18... Rac8 {[%clk 0:01:36.3]} 19. Bf4
{[%clk 0:01:12.8]} 19... Rc4 {[%clk 0:01:25.1]} 20. Be3 {[%clk 0:01:05.4]} 20...
Rec8 {[%clk 0:01:17.6]} 21. h3 {[%clk 0:01:03.9]} 21... Nh4 {[%clk 0:01:12.9]}
22. Qd1 {[%clk 0:00:52.7]} 22... Bxh3 {[%clk 0:01:08.7]} 23. Qh5 {[%clk
0:00:47.8]} 23... Nxg2 {[%clk 0:01:01.3]} 0-1

[Event "*** Titled Tuesday Blitz"]
[Site "Chess.com"]
[Date "2019.11.05"]
[Round "1"]
[White "esskeettit"]
[Black "chito89"]
[Result "1/2-1/2"]
[WhiteElo "2410"]
[BlackElo "2740"]
[TimeControl "180+2"]
[EndTime "13:06:18 PST"]
[Termination "Game drawn by repetition"]

1. d4 {[%clk 0:03:00.9]} 1... Nf6 {[%clk 0:02:47.3]} 2. c4 {[%clk 0:03:01.2]}
2... e6 {[%clk 0:02:48.8]} 3. Nc3 {[%clk 0:03:02.4]} 3... Bb4 {[%clk 0:02:48.8]}
4. e3 {[%clk 0:03:03.8]} 4... O-O {[%clk 0:02:44.8]} 5. Bd3 {[%clk 0:03:05]}
5... c5 {[%clk 0:02:42.7]} 6. Ne2 {[%clk 0:03:05.7]} 6... b6 {[%clk 0:02:41.3]}
7. a3 {[%clk 0:03:06.7]} 7... Ba5 {[%clk 0:02:41.3]} 8. Rb1 {[%clk 0:03:07.8]}
8... Qe7 {[%clk 0:02:39.5]} 9. d5 {[%clk 0:03:00.6]} 9... exd5 {[%clk
0:02:36.1]} 10. cxd5 {[%clk 0:03:00.9]} 10... Nxd5 {[%clk 0:02:19.2]} 11. Bxh7+
{[%clk 0:02:55.4]} 11... Kxh7 {[%clk 0:02:20.5]} 12. Qxd5 {[%clk 0:02:56.4]}
12... Nc6 {[%clk 0:02:14.3]} 13. O-O {[%clk 0:02:56.5]} 13... Ba6 {[%clk
0:02:15.7]} 14. Rd1 {[%clk 0:02:53.3]} 14... f5 {[%clk 0:02:09.3]} 15. Nf4
{[%clk 0:02:42.5]} 15... Rad8 {[%clk 0:02:03.9]} 16. Bd2 {[%clk 0:02:24.6]}
16... Ne5 {[%clk 0:01:55.9]} 17. Nce2 {[%clk 0:02:04.9]} 17... Bc4 {[%clk
0:01:53.7]} 18. Qb7 {[%clk 0:02:04.2]} 18... Bxd2 {[%clk 0:01:39.2]} 19. Rxd2
{[%clk 0:02:03.2]} 19... Nc6 {[%clk 0:01:38.7]} 20. Rbd1 {[%clk 0:01:58]} 20...
Qf6 {[%clk 0:01:24.7]} 21. Rxd7 {[%clk 0:01:48.3]} 21... Rxd7 {[%clk 0:01:25.4]}
22. Rxd7 {[%clk 0:01:50.2]} 22... Qxb2 {[%clk 0:01:26.4]} 23. h4 {[%clk
0:01:42.8]} 23... Rd8 {[%clk 0:01:12.6]} 24. Qxc6 {[%clk 0:01:39.2]} 24... Rxd7
{[%clk 0:01:09.5]} 25. Qxd7 {[%clk 0:01:41.1]} 25... Bxe2 {[%clk 0:01:10.5]} 26.
Qxf5+ {[%clk 0:01:42.1]} 26... Kg8 {[%clk 0:01:12]} 27. Qe6+ {[%clk 0:01:42.9]}
27... Kh7 {[%clk 0:01:10.1]} 28. Qg6+ {[%clk 0:01:30.8]} 28... Kg8 {[%clk
0:01:11.1]} 29. Qe8+ {[%clk 0:01:25.1]} 29... Kh7 {[%clk 0:01:11.2]} 30. Qg6+
{[%clk 0:01:03.4]} 30... Kh8 {[%clk 0:01:11.2]} 31. Qe8+ {[%clk 0:01:04.5]}
31... Kh7 {[%clk 0:01:11.4]} 32. Qg6+ {[%clk 0:01:00.6]} 1/2-1/2

[Event "*** Titled Tuesday Blitz"]
[Site "Chess.com"]
[Date "2019.11.05"]
[Round "1"]
[White "Macron20hTF1"]
[Black "nailbeshirli"]
[Result "0-1"]
[WhiteElo "2263"]
[BlackElo "2625"]
[TimeControl "180+2"]
[EndTime "13:06:22 PST"]
[Termination "nailbeshirli won by resignation"]

1. g3 {[%clk 0:02:56]} 1... d5 {[%clk 0:03:00.6]} 2. Bg2 {[%clk 0:02:57]} 2...
c6 {[%clk 0:03:01.5]} 3. d3 {[%clk 0:02:57.7]} 3... Nf6 {[%clk 0:03:03.1]} 4. f4
{[%clk 0:02:59.1]} 4... h5 {[%clk 0:03:01.8]} 5. Nf3 {[%clk 0:03:00.2]} 5... g6
{[%clk 0:02:52.1]} 6. O-O {[%clk 0:02:58.5]} 6... Bg7 {[%clk 0:02:50.8]} 7. Nc3
{[%clk 0:02:59.9]} 7... Bg4 {[%clk 0:02:43.2]} 8. h3 {[%clk 0:02:59.9]} 8...
Bxf3 {[%clk 0:02:44.4]} 9. Bxf3 {[%clk 0:03:01.8]} 9... Nbd7 {[%clk 0:02:45.5]}
10. e4 {[%clk 0:03:01.5]} 10... dxe4 {[%clk 0:02:38.8]} 11. dxe4 {[%clk
0:03:03.4]} 11... e5 {[%clk 0:02:35.6]} 12. Be3 {[%clk 0:02:55.5]} 12... Qc7
{[%clk 0:02:33.4]} 13. a4 {[%clk 0:02:52]} 13... O-O-O {[%clk 0:02:31.3]} 14.
Qe2 {[%clk 0:02:51.1]} 14... h4 {[%clk 0:02:24.5]} 15. fxe5 {[%clk 0:02:07.4]}
15... Qxe5 {[%clk 0:02:19.5]} 16. Bxa7 {[%clk 0:02:03]} 16... Qxg3+ {[%clk
0:02:12.5]} 17. Bg2 {[%clk 0:02:04.3]} 17... Nh5 {[%clk 0:02:06.9]} 18. Qf2
{[%clk 0:01:43.6]} 18... Be5 {[%clk 0:01:58]} 19. Qxg3 {[%clk 0:01:43.4]} 19...
hxg3 {[%clk 0:01:48.8]} 20. Rxf7 {[%clk 0:01:39]} 20... Nf4 {[%clk 0:01:49.3]}
21. a5 {[%clk 0:01:37.3]} 21... Nxh3+ {[%clk 0:01:39.2]} 22. Bxh3 {[%clk
0:01:38]} 22... Rxh3 {[%clk 0:01:41.1]} 23. a6 {[%clk 0:01:23.3]} 23... bxa6
{[%clk 0:01:37.8]} 24. Rxa6 {[%clk 0:01:20.8]} 24... Rdh8 {[%clk 0:01:22.9]} 25.
Rxc6+ {[%clk 0:01:04.7]} 25... Kb7 {[%clk 0:01:23.7]} 26. Rxg6 {[%clk
0:01:05.3]} 26... Rh1+ {[%clk 0:01:22.9]} 27. Kg2 {[%clk 0:01:06.8]} 27... R8h2+
{[%clk 0:01:23.4]} 28. Kf3 {[%clk 0:01:08.2]} 28... Rf1+ {[%clk 0:01:24.4]} 29.
Kg4 {[%clk 0:01:04.9]} 29... Rxf7 {[%clk 0:01:26.3]} 30. Bg1 {[%clk 0:01:02]}
30... Rf4+ {[%clk 0:01:25.4]} 31. Kxg3 {[%clk 0:01:01]} 31... Rf7+ {[%clk
0:01:12.7]} 0-1

[Event "*** Titled Tuesday Blitz"]
[Site "Chess.com"]
[Date "2019.11.05"]
[Round "1"]
[White "GHANDEEVAM2003"]
[Black "SONOFHOLYGOD"]
[Result "1-0"]
[WhiteElo "3002"]
[BlackElo "2518"]
[TimeControl "180+2"]
[EndTime "13:06:26 PST"]
[Termination "GHANDEEVAM2003 won by resignation"]

1. d4 {[%clk 0:03:00.8]} 1... Nf6 {[%clk 0:03:00.1]} 2. Bg5 {[%clk 0:03:00.4]}
2... e6 {[%clk 0:03:01.4]} 3. e4 {[%clk 0:03:00.5]} 3... h6 {[%clk 0:03:01.5]}
4. Bxf6 {[%clk 0:03:01.4]} 4... Qxf6 {[%clk 0:03:02.7]} 5. Nf3 {[%clk
0:03:02.9]} 5... c5 {[%clk 0:03:03.1]} 6. e5 {[%clk 0:02:59.8]} 6... Qd8 {[%clk
0:03:01.5]} 7. d5 {[%clk 0:02:59.1]} 7... exd5 {[%clk 0:02:55.1]} 8. Qxd5 {[%clk
0:03:01]} 8... Be7 {[%clk 0:02:53]} 9. Nc3 {[%clk 0:02:58.6]} 9... O-O {[%clk
0:02:51.6]} 10. O-O-O {[%clk 0:02:53.8]} 10... a6 {[%clk 0:02:49.9]} 11. h4
{[%clk 0:02:50.5]} 11... Nc6 {[%clk 0:02:37.9]} 12. Qe4 {[%clk 0:02:50.1]} 12...
Re8 {[%clk 0:02:30.7]} 13. Bd3 {[%clk 0:02:46.4]} 13... g6 {[%clk 0:02:19]} 14.
h5 {[%clk 0:02:47.4]} 14... Bg5+ {[%clk 0:02:13.7]} 15. Kb1 {[%clk 0:02:46.5]}
15... d6 {[%clk 0:01:51.2]} 16. hxg6 {[%clk 0:02:39.8]} 16... f5 {[%clk
0:01:52.4]} 17. Qd5+ {[%clk 0:02:02.7]} 17... Be6 {[%clk 0:01:50.7]} 18. Qxd6
{[%clk 0:02:03.8]} 18... Qa5 {[%clk 0:01:44.7]} 19. Nxg5 {[%clk 0:01:57.9]}
19... Rad8 {[%clk 0:01:45.5]} 20. Qxe6+ {[%clk 0:01:55.9]} 20... Rxe6 {[%clk
0:01:45.7]} 21. Nxe6 {[%clk 0:01:57.8]} 21... Re8 {[%clk 0:01:41.1]} 22. Bxf5
{[%clk 0:01:50.4]} 22... Nxe5 {[%clk 0:01:31.5]} 23. Nd5 {[%clk 0:01:49.6]}
23... Rxe6 {[%clk 0:01:21.1]} 24. Bxe6+ {[%clk 0:01:51.5]} 24... Kg7 {[%clk
0:01:22]} 25. Nf4 {[%clk 0:01:52.2]} 25... Nxg6 {[%clk 0:01:11.7]} 26. Rd7+
{[%clk 0:01:45.9]} 26... Kf6 {[%clk 0:01:11.6]} 27. Rf7+ {[%clk 0:01:47.3]}
27... Ke5 {[%clk 0:01:11]} 28. Rf5+ {[%clk 0:01:48.7]} 28... Kd6 {[%clk
0:01:11.2]} 29. Rd1+ {[%clk 0:01:49.9]} 29... Kc7 {[%clk 0:01:02.4]} 30. Nxg6
{[%clk 0:01:47.7]} 30... Qb4 {[%clk 0:01:02.3]} 31. a3 {[%clk 0:01:47.1]} 31...
Qa4 {[%clk 0:01:01.3]} 32. Rxc5+ {[%clk 0:01:47.2]} 32... Kb8 {[%clk 0:01:01.5]}
33. f4 {[%clk 0:01:45.3]} 33... h5 {[%clk 0:00:56.7]} 34. Rxh5 {[%clk
0:01:43.1]} 34... Qe4 {[%clk 0:00:56.7]} 35. f5 {[%clk 0:01:43.6]} 35... Qe2
{[%clk 0:00:54.7]} 36. Rhh1 {[%clk 0:01:44.8]} 36... a5 {[%clk 0:00:55.3]} 37.
Rhf1 {[%clk 0:01:45.9]} 37... a4 {[%clk 0:00:55.1]} 38. Ba2 {[%clk 0:01:46.4]}
38... Qg4 {[%clk 0:00:54]} 39. f6 {[%clk 0:01:46.9]} 1-0